fUSD/lending_fUSD_20260308
["ID","MTS","AMOUNT","RATE_DAILY","PERIOD"]
[407971715,1772952642867,-150.0,0.00019754,2]
[407971716,1772952642876,-502.58560742,0.00019754,2]
[407971717,1772952642886,-500.0,0.0001977,2]
[407971718,1772952642895,-151.0,0.0001977,2]
[407971719,1772952642904,-200.0,0.00019771,2]
[407971720,1772952642913,-3331.95438389,0.000198,2]
[407971721,1772952642922,-1000.0,0.000198,2]
[407971722,1772952642931,-150.0,0.00019809,2]
[407971723,1772952642940,-150.0,0.00019809,2]
[407971724,1772952642950,-150.0,0.00019809,2]
[407971725,1772952642959,-246.68097798,0.00019809,2]
[407971726,1772952642968,-200.0,0.00019809,2]
[407971727,1772952642977,-200.0,0.00019809,2]
[407971728,1772952642986,-150.0,0.00019809,2]
[407971729,1772952642996,-150.0,0.00019809,2]
[407971730,1772952643005,-200.0,0.00019809,2]
[407971731,1772952643015,-201.46113503,0.00019809,2]
[407971732,1772952643025,-150.0,0.00019809,2]
[407971733,1772952643034,-2002.05827191,0.00019816,2]
[407971734,1772952643044,-1036.53654408,0.00019816,2]
[407971735,1772952643054,-2002.44994168,0.00019816,2]
[407971736,1772952643065,-1826.28604612,0.00019816,2]
[407971737,1772952643075,-2000.0,0.00019816,2]
[407971738,1772952643084,-2002.4254671,0.00019816,2]
[407971739,1772952643094,-2000.0,0.00019816,2]
[407971740,1772952643103,-156.13,0.0001985,2]
[407971741,1772952643113,-150.0,0.00019863,2]
[407971742,1772952643122,-211.41756571,0.00019863,2]
[407971743,1772952643132,-150.51346149,0.00019863,2]
[407971744,1772952643141,-5604.01759289,0.00019888,2]
[407971745,1772952643150,-1985.68635098,0.00019899,2]
[407971746,1772952643160,-165.63365939,0.00019899,2]
[407971747,1772952643169,-500.0,0.00019899,2]
[407971748,1772952643178,-500.0,0.00019899,2]
[407971749,1772952643188,-500.0,0.00019899,2]
[407971750,1772952643198,-500.0,0.00019899,2]
[407971751,1772952643207,-515.34564345,0.00019899,2]
[407971752,1772952643217,-500.0,0.00019899,2]
[407971753,1772952643226,-500.0,0.00019899,2]
[407971754,1772952643235,-333.0,0.00019899,2]
[407971755,1772952643245,-500.0,0.00019899,2]
[407971756,1772952643254,-500.0,0.00019899,2]
[407971757,1772952643264,-500.0,0.00019899,2]
[407971758,1772952643273,-500.0,0.00019899,2]
[407971759,1772952643282,-500.0,0.00019899,2]
[407971760,1772952643291,-500.0,0.00019899,2]
[407971761,1772952643301,-500.0,0.00019899,2]
[407971762,1772952643311,-484.25426362,0.00019899,2]
[407971763,1772952643320,-500.0,0.00019899,2]
[407971764,1772952643331,-387.90554788,0.00019899,2]
[407971765,1772952643341,-184.19,0.00019908,2]
[407971766,1772952643351,-1199.7,0.00019916,2]
[407971767,1772952643361,-2000.0,0.00019916,2]
[407971768,1772952643370,-2000.0,0.00019916,2]
[407971769,1772952643379,-212.29794905,0.00019916,2]
[407971770,1772952643389,-2002.9161203,0.00019916,2]
[407971771,1772952643399,-1622.76149963,0.00019916,2]
[407971772,1772952643412,-2000.0,0.00019916,2]
[407971773,1772952643422,-2000.0,0.00019916,2]
[407971774,1772952643432,-1419.82317181,0.00019916,2]
[407971775,1772952643442,-2000.0,0.00019916,2]
[407971776,1772952643453,-1408.24290655,0.00019916,2]
[407971777,1772952643463,-1670.26538269,0.00019916,2]
[407971778,1772952643473,-2000.0,0.00019916,2]
[407971779,1772952643485,-1752.76792023,0.00019916,2]
[407971780,1772952643494,-2000.0,0.00019916,2]
[407971781,1772952643505,-2000.0,0.00019916,2]
[407971782,1772952643514,-669.63143659,0.00019916,2]
[407971783,1772952643524,-1881.06785908,0.00019916,2]
[407971784,1772952643534,-209.09008133,0.00019918,2]
[407971785,1772952643543,-150.0,0.00019973,2]
[407971786,1772952643552,-165.80766888,0.00019973,2]
[407971787,1772952643561,-500.0,0.00019982,2]
[407971789,1772952643574,-3500.0,0.00019988,2]
[407971791,1772952643584,-3500.0,0.00019988,2]
[407971792,1772952643593,-150.0,0.0002,7]
[407971793,1772952643604,-1507.509692,0.0002,2]
[407971794,1772952643614,-1252.0,0.00020024,2]
[407971795,1772952643623,-1600.0,0.00020025,2]
[407971796,1772952643633,-500.0,0.00020025,2]
[407971797,1772952643644,-500.0,0.00020025,2]
[407971798,1772952643655,-500.0,0.00020025,2]
[407971799,1772952643667,-500.0,0.00020025,2]
[407971800,1772952643677,-884.911124,0.00020062,2]
[407971801,1772952643687,-1199.74249175,0.0002019,2]
[407971802,1772952643695,-168.0,0.00020208,2]
[407971803,1772952643706,-156.13,0.0002024,2]
[407971804,1772952643716,-345.72,0.0002027,2]
[407971805,1772952643725,-200.0,0.00020319,2]
[407971806,1772952643735,-483.76,0.00020435,2]
[407971807,1772952643743,-2500.0,0.00020464,2]
[407971808,1772952643752,-1229.15314637,0.00020464,2]
[407971809,1772952643762,-180.85414414,0.00020464,2]
[407971810,1772952643771,-2315.05814726,0.00020464,2]
[407971811,1772952643779,-550.62611789,0.00020464,2]
[407971812,1772952643789,-2503.04270787,0.00020464,2]
[407971813,1772952643798,-251.43892941,0.00020521,2]
[407971814,1772952643807,-2161.21660943,0.00020536,2]
[407971815,1772952643816,-4000.0,0.00020536,2]
[407971816,1772952643825,-1003.22245695,0.00020573,2]
[407971817,1772952643835,-1000.0,0.00020573,2]
[407971818,1772952643844,-1000.0,0.00020573,2]
[407971819,1772952643853,-1000.0,0.00020573,2]
[407971820,1772952643862,-156.13,0.0002063,2]
[407971821,1772952643871,-38529.9197053,0.00020663,2]
[407971822,1772952643881,-300.19,0.00020709,2]
[407971823,1772952643891,-160.0,0.00020728,2]
[407971824,1772952643900,-184.19,0.00020773,2]
[407971825,1772952643910,-200.0,0.00020867,2]
[407971826,1772952643919,-5604.01759289,0.00020932,2]
[407971827,1772952643929,-31667.81419682,0.00020983,2]
[407971828,1772952643938,-168.0,0.00021001,2]
[407971829,1772952643947,-1230.59439442,0.00021012,2]
[407971830,1772952643956,-500.0,0.00021014,2]
[407971831,1772952643966,-156.13,0.0002102,2]
[407971832,1772952643975,-1224.44361513,0.00021121,2]
[407971833,1772952643985,-1500.0,0.00021121,2]
[407971834,1772952643994,-1505.72539808,0.00021121,2]
[407971835,1772952644004,-291.15,0.00021159,2]
[407971836,1772952644014,-500.0,0.00021221,2]
[407971837,1772952644024,-156.13,0.0002141,2]
[407971838,1772952644033,-200.0,0.00021415,2]
[407971839,1772952644042,-269.7452536,0.00021538,2]
[407971840,1772952644052,-991.0,0.00021539,2]
[407971841,1772952644062,-184.19,0.00021639,2]
[407971842,1772952644071,-2000.0,0.00021669,2]
[407971843,1772952644081,-387.04440727,0.00021679,2]
[407971844,1772952644090,-156.29,0.000218,2]
[407971845,1772952644100,-4780.609712,0.00021852,7]
[407971846,1772952644109,-775.79506963,0.0002186,2]
[407971847,1772952644118,-200.0,0.00021963,2]
[407971848,1772952644128,-5604.01759289,0.00021976,2]
[407971849,1772952644136,-1600.0,0.00022027,2]
[407971850,1772952644146,-180.0,0.00022147,2]
[407971851,1772952644155,-221.8651984,0.00022147,2]
[407971852,1772952644164,-180.0,0.00022147,7]
[407971853,1772952644173,-180.0,0.00022147,7]
[407971854,1772952644182,-202.61127776,0.00022147,7]
[407971855,1772952644191,-180.0,0.00022147,7]
[407971856,1772952644201,-195.07418518,0.00022147,7]
[407971857,1772952644210,-194.07917506,0.00022172,2]
[407971858,1772952644219,-849.597787,0.00022173,30]
[407971859,1772952644228,-2503.49830663,0.00022217,2]
[407971860,1772952644238,-1908.75,0.00022223,2]
[407971861,1772952644247,-345.72,0.00022357,2]
[407971862,1772952644291,-501.91159557,0.00022373,2]
[407971863,1772952644299,-501.06148224,0.00022373,2]
[407971864,1772952644308,-500.62411005,0.00022373,2]
[407971865,1772952644318,-151.0,0.00022378,2]
[407971866,1772952644327,-500.0,0.0002238,2]
[407971867,1772952644335,-360210.8454699,0.00022381,2]
[407971868,1772952644344,-13551.4120462,0.00022381,2]
[407971869,1772952644354,-184.19,0.00022504,2]
[407971870,1772952644364,-506.34126719,0.00022509,2]
[407971871,1772952644373,-151.0,0.00022509,2]
[407971872,1772952644383,-200.0,0.00022511,2]
[407971873,1772952644392,-5841.52919154,0.00022691,2]
[407971874,1772952644401,-1000.0,0.000229,2]
[407971875,1772952644411,-38529.9197053,0.00022913,2]
[407971876,1772952644420,-5604.01759289,0.00023021,2]
[407971877,1772952644430,-200.0,0.00023059,2]
[407971878,1772952644438,-337.65,0.00023207,2]
[407971879,1772952644447,-374.97,0.00023207,2]
[407971880,1772952644457,-184.19,0.0002337,2]
[407971881,1772952644466,-864.90825476,0.00023453,2]
[407971882,1772952644475,-500.0,0.00023468,2]
[407971883,1772952644483,-150.0,0.000235,2]
[407971884,1772952644493,-1168.75,0.00023506,2]
[407971885,1772952644501,-489.87,0.00023587,2]
[407971886,1772952644510,-489.88,0.00023587,2]
[407971887,1772952644519,-489.87,0.00023587,2]
[407971888,1772952644528,-200.0,0.00023607,2]
[407971889,1772952644537,-291.15,0.00023826,2]
[407971890,1772952644546,-505.0,0.00024,8]
[407971891,1772952644555,-232.45623882,0.00024014,2]
[407971892,1772952644564,-31667.81419682,0.00024024,2]
[407971893,1772952644577,-1600.0,0.0002403,2]
[407971894,1772952644586,-250.72495235,0.00024048,2]
[407971895,1772952644595,-5604.01759289,0.00024065,2]
[407971896,1772952644603,-6859.36018721,0.0002412,2]
[407971897,1772952644614,-200.0,0.00024155,2]
[407971898,1772952644623,-489.87,0.00024177,2]
[407971899,1772952644631,-489.87,0.00024177,2]
[407971900,1772952644641,-500.0,0.00024274,2]
[407971901,1772952644650,-229.8183771,0.00024334,2]
[407971902,1772952644659,-506.22913573,0.00024334,2]
[407971903,1772952644668,-150.0,0.00024357,2]
[407971904,1772952644677,-150.0,0.00024357,2]
[407971905,1772952644685,-291.15394572,0.00024357,2]
[407971906,1772952644694,-200.0,0.00024358,2]
[407971907,1772952644703,-200.0,0.00024358,2]
[407971908,1772952644712,-152.0,0.00024358,2]
[407971909,1772952644721,-151.0,0.00024358,2]
[407971910,1772952644731,-151.0,0.00024358,2]
[407971911,1772952644740,-151.0,0.00024358,2]
[407971912,1772952644749,-173.03890573,0.00024358,2]
[407971913,1772952644758,-223.77868643,0.00024358,2]
[407971914,1772952644767,-151.0,0.00024358,2]
[407971915,1772952644776,-151.0,0.00024358,2]
[407971916,1772952644785,-151.0,0.00024358,2]
[407971917,1772952644794,-2000.0,0.00024443,2]
[407971918,1772952644802,-172.82949155,0.00024533,2]
[407971919,1772952644811,-1047.31860186,0.00024581,10]
[407971920,1772952644820,-200.0,0.00024602,2]
[407971921,1772952644829,-1000.0,0.00024658,2]
[407971922,1772952644839,-150.0,0.00024658,2]
[407971923,1772952644847,-200.0,0.00024703,2]
[407971924,1772952644856,-489.88,0.00024767,2]
[407971925,1772952644865,-489.89483843,0.00024767,2]
[407971926,1772952644874,-500.0,0.00024818,2]
[407971927,1772952644882,-500.0,0.00024818,2]
[407971928,1772952644891,-360210.8454699,0.00024818,2]
[407971929,1772952644900,-200.0,0.00024848,2]
[407971930,1772952644908,-530.36462586,0.00024899,2]
[407971931,1772952644917,-172.82949155,0.000249,3]
[407971932,1772952644926,-230.48,0.00024944,2]
[407971933,1772952644936,-310.93,0.00025049,30]
[407971934,1772952644945,-200.0,0.00025096,2]
[407971935,1772952644954,-5604.01759289,0.00025109,2]
[407971936,1772952644963,-712.0,0.00025114,2]
[407971937,1772952644972,-150.0,0.00025114,2]
[407971938,1772952644981,-261.0,0.00025114,2]
[407971939,1772952644991,-38529.9197053,0.00025164,2]
[407971940,1772952645000,-151.0,0.00025248,2]
[407971941,1772952645009,-200.0,0.00025251,2]
[407971942,1772952645018,-200.0,0.00025347,2]
[407971943,1772952645027,-230.48,0.00025444,2]
[407971944,1772952645036,-242.90679649,0.00025799,2]
[407971945,1772952645046,-150.0,0.0002589,2]
[407971946,1772952645061,-230.47091834,0.00025944,2]
[407971947,1772952645071,-3023.7287401,0.00026107,2]
[407971948,1772952645080,-5604.01759289,0.00026153,2]
[407971949,1772952645089,-1398.562,0.00026444,2]
[407971950,1772952645098,-1000.0,0.000266,2]
[407971951,1772952645107,-609.0,0.00026706,2]
[407971952,1772952645118,-150.0,0.00026706,2]
[407971953,1772952645127,-150.0,0.00026706,2]
[407971954,1772952645136,-150.0,0.00026706,2]
[407971955,1772952645146,-150.0,0.00026706,2]
[407971956,1772952645157,-150.0,0.00026706,2]
[407971957,1772952645166,-241.0,0.00026706,2]
[407971958,1772952645179,-638.0,0.00026706,2]
[407971959,1772952645190,-150.0,0.00026706,2]
[407971960,1772952645200,-150.0,0.00026706,2]
[407971961,1772952645210,-150.0,0.00026706,2]
[407971962,1772952645219,-286.0,0.00026706,2]
[407971963,1772952645228,-2000.0,0.00026888,2]
[407971964,1772952645237,-674.685078,0.00026938,2]
[407971965,1772952645247,-194.1,0.00027005,2]
[407971966,1772952645258,-31667.81419682,0.00027066,2]
[407971967,1772952645268,-150.0,0.00027185,2]
[407971968,1772952645279,-5604.01759289,0.00027197,2]
[407971969,1772952645290,-5841.52919154,0.00027209,2]
[407971970,1772952645299,-114492.04872018,0.00027256,2]
[407971971,1772952645401,-2638.15312271,0.00027256,2]
[407971972,1772952645413,-11579.7284379,0.00027256,2]
[407971973,1772952645452,-197.13766539,0.0001714,2]
[407971974,1772952645463,-231500.91518911,0.00027256,2]
[407971975,1772952645475,-251.241059,0.00027256,2]
[407971976,1772952645486,-409.118743,0.00027256,2]
[407971977,1772952645496,-409.118743,0.00027256,2]
[407971978,1772952645507,-409.118743,0.00027256,2]
[407971979,1772952645518,-409.118743,0.00027256,2]
[407971980,1772952645529,-151.0,0.00027397,2]
[407971981,1772952645539,-151.0,0.00027397,2]
[407971982,1772952645550,-151.0,0.00027397,2]
[407971983,1772952645561,-151.0,0.00027397,2]
[407971984,1772952645575,-1000.0,0.00027397,20]
[407971985,1772952645584,-300.0,0.00027397,2]
[407971986,1772952645594,-10954.31,0.00027397,10]
[407971987,1772952645604,-9128.59,0.00027397,10]
[407971988,1772952645615,-38529.9197053,0.00027414,2]
[407971989,1772952645626,-313.25,0.000275,7]
[407971990,1772952645638,-194.1,0.00027518,2]
[407971991,1772952645650,-331.16,0.00027547,2]
[407971992,1772952645659,-355.61,0.000277,14]
[407971993,1772952645669,-3502.0,0.00027874,2]
[407971994,1772952645679,-619.0,0.00027874,2]
[407971995,1772952645688,-1044.726,0.00027874,2]
[407971996,1772952645697,-1342.0,0.00027874,2]
[407971997,1772952645707,-1279.0,0.00027874,2]
[407971998,1772952645716,-216.0,0.00027874,2]
[407971999,1772952645726,-530.286,0.00027874,2]
[407972000,1772952645735,-150.0,0.00027874,2]
[407972001,1772952645745,-3746.0,0.00027874,2]
[407972002,1772952645755,-6036.963,0.00027874,2]
[407972003,1772952645765,-310.93,0.00027984,30]
[407972004,1772952645775,-151.0,0.00027987,2]
[407972005,1772952645785,-500.0,0.00028384,2]
[407972006,1772952645796,-151.0,0.00028421,7]
[407972007,1772952645805,-151.0,0.00028421,7]
[407972008,1772952645815,-151.0,0.00028421,7]
[407972009,1772952645825,-150.0,0.00028544,2]
[407972010,1772952645835,-864.90825476,0.00028723,2]
[407972011,1772952645845,-775.79506963,0.0002882,2]
[407972012,1772952645854,-273.0,0.00028909,7]
[407972013,1772952645865,-212.0,0.00028909,7]
[407972014,1772952645875,-1206.86,0.00029009,2]
[407972015,1772952645885,-11154.755996,0.00029136,30]
[407972016,1772952645894,-2000.0,0.00029332,2]
[407972017,1772952645905,-1982.394837,0.00029564,30]
[407972018,1772952645915,-151.0,0.0002969,7]
[407972019,1772952645925,-360210.8454699,0.00029693,2]
[407972020,1772952645935,-150.0,0.00029803,7]
[407972021,1772952645945,-153.0,0.00029803,7]
[407972022,1772952645954,-150.0,0.00029971,2]
[407972023,1772952645964,-31667.81419682,0.00030107,2]
[407972024,1772952645974,-3109.0,0.00030137,120]
[407972025,1772952645984,-151.42631785,0.00030726,2]
[407972026,1772952645993,-150.0,0.00030783,2]
[407972027,1772952646003,-150.0,0.00030783,120]
[407972028,1772952646012,-619.0,0.00030874,2]
[407972029,1772952646022,-1042.0,0.00030874,2]
[407972030,1772952646031,-414.0,0.00030874,2]
[407972031,1772952646040,-5992.0,0.00030874,2]
[407972032,1772952646051,-181.0,0.000309,120]
[407972033,1772952646060,-310.93,0.0003092,30]
[407972034,1772952646070,-239.0,0.00030973,14]
[407972035,1772952646079,-186.0,0.00030973,14]
[407972036,1772952646088,-505.0,0.00031,14]
[407972037,1772952646097,-680.0,0.00031073,30]
[407972038,1772952646106,-4676.0,0.00031319,5]
[407972039,1772952646116,-4739.0,0.00031319,5]
[407972040,1772952646125,-369.74265883,0.00031386,2]
[407972041,1772952646136,-5841.52919154,0.00031727,2]
[407972042,1772952646148,-265.0,0.00031932,14]
[407972043,1772952646158,-9000.0,0.00032264,2]
[407972044,1772952646170,-151.0,0.00032264,2]
[407972045,1772952646179,-250.0,0.00032264,2]
[407972046,1772952646188,-721.12765535,0.00032264,2]
[407972047,1772952646199,-250.0,0.00032264,2]
[407972048,1772952646210,-250.0,0.00032264,2]
[407972049,1772952646220,-250.0,0.00032264,2]
[407972050,1772952646229,-250.0,0.00032264,2]
[407972051,1772952646239,-250.0,0.00032264,2]
[407972052,1772952646250,-205.37563911,0.00032264,2]
[407972054,1772952646259,-2500.0,0.00032264,2]
[407972055,1772952646269,-500.0,0.00032264,2]
[407972056,1772952646280,-2500.0,0.00032264,2]
[407972057,1772952646291,-2500.0,0.00032264,2]
[407972058,1772952646301,-2500.0,0.00032264,2]
[407972059,1772952646310,-1000.0,0.00032264,2]
[407972060,1772952646320,-578.20924308,0.00032264,2]
[407972061,1772952646329,-250.0,0.00032264,2]
[407972062,1772952646338,-250.0,0.00032264,2]
[407972063,1772952646348,-259.63761657,0.00032264,2]
[407972064,1772952646357,-3000.0,0.00032264,2]
[407972065,1772952646367,-3000.0,0.00032264,2]
[407972066,1772952646377,-609.621819,0.00032264,2]
[407972067,1772952646386,-201.4007416,0.00032264,2]
[407972068,1772952646396,-250.0,0.00032264,2]
[407972069,1772952646405,-250.0,0.00032264,2]
[407972070,1772952646415,-250.0,0.00032264,2]
[407972071,1772952646425,-250.0,0.00032264,2]
[407972072,1772952646434,-250.0,0.00032264,2]
[407972073,1772952646444,-743.50770149,0.00032264,2]
[407972074,1772952646453,-250.0,0.00032264,2]
[407972075,1772952646461,-250.0,0.00032264,2]
[407972076,1772952646470,-693.3919763,0.00032264,2]
[407972077,1772952646480,-250.0,0.00032264,2]
[407972078,1772952646489,-250.0,0.00032264,2]
[407972079,1772952646498,-250.0,0.00032264,2]
[407972080,1772952646507,-250.0,0.00032264,2]
[407972081,1772952646516,-250.0,0.00032264,2]
[407972082,1772952646525,-250.0,0.00032264,2]
[407972083,1772952646534,-250.0,0.00032264,2]
[407972084,1772952646543,-174.61919141,0.00032264,2]
[407972085,1772952646552,-163.77085491,0.00032264,2]
[407972086,1772952646562,-250.0,0.00032264,2]
[407972087,1772952646576,-757.94767592,0.00032264,2]
[407972088,1772952646585,-250.0,0.00032264,2]
[407972089,1772952646593,-355.53018622,0.00032264,2]
[407972090,1772952646603,-151.0,0.00032264,2]
[407972091,1772952646615,-151.0,0.00032264,2]
[407972092,1772952646625,-156.587,0.00032264,2]
[407972093,1772952646634,-200.0,0.00032264,2]
[407972094,1772952646644,-193.30408517,0.00032264,2]
[407972095,1772952646653,-209.40437684,0.00032264,2]
[407972096,1772952646661,-262.90206542,0.00032264,2]
[407972097,1772952646671,-500.0,0.00032264,2]
[407972098,1772952646680,-500.0,0.00032264,2]
[407972099,1772952646689,-500.0,0.00032264,2]
[407972100,1772952646699,-500.0,0.00032264,2]
[407972101,1772952646708,-500.0,0.00032264,2]
[407972102,1772952646719,-500.0,0.00032264,2]
[407972103,1772952646728,-500.0,0.00032264,2]
[407972104,1772952646737,-500.0,0.00032264,2]
[407972105,1772952646746,-500.0,0.00032264,2]
[407972106,1772952646755,-500.0,0.00032264,2]
[407972107,1772952646764,-500.0,0.00032264,2]
[407972108,1772952646775,-252.17491878,0.000323,2]
[407972109,1772952646785,-9000.0,0.00032319,2]
[407972110,1772952646795,-719.04747942,0.00032319,2]
[407972111,1772952646804,-151.0,0.00032319,2]
[407972112,1772952646814,-9000.0,0.00032374,2]
[407972113,1772952646824,-745.65223616,0.00032374,2]
[407972114,1772952646834,-151.0,0.00032374,2]
[407972115,1772952646844,-9000.0,0.00032429,2]
[407972116,1772952646854,-773.2413689,0.00032429,2]
[407972117,1772952646863,-151.0,0.00032429,2]
[407972118,1772952646873,-9000.0,0.00032484,2]
[407972119,1772952646882,-801.85129955,0.00032484,2]
[407972120,1772952646892,-151.0,0.00032484,2]
[407972121,1772952646902,-9000.0,0.00032539,2]
[407972122,1772952646912,-831.51979763,0.00032539,2]
[407972123,1772952646921,-151.0,0.00032539,2]
[407972124,1772952646931,-9000.0,0.00032594,2]
[407972125,1772952646940,-862.28603014,0.00032594,2]
[407972126,1772952646949,-151.0,0.00032594,2]
[407972127,1772952646959,-9000.0,0.00032649,2]
[407972128,1772952646968,-894.19061326,0.00032649,2]
[407972129,1772952646978,-151.0,0.00032649,2]
[407972130,1772952646987,-9000.0,0.00032704,2]
[407972131,1772952646996,-927.27566595,0.00032704,2]
[407972132,1772952647007,-151.0,0.00032704,2]
[407972133,1772952647016,-9000.0,0.00032759,2]
[407972134,1772952647025,-961.58486559,0.00032759,2]
[407972135,1772952647035,-151.0,0.00032759,2]
[407972136,1772952647044,-999.81941848,0.000328,2]
[407972137,1772952647054,-151.25613122,0.00032812,2]
[407972138,1772952647064,-500.0,0.00032812,2]
[407972139,1772952647074,-771.01748645,0.00032812,2]
[407972140,1772952647084,-181.08010149,0.00032812,2]
[407972141,1772952647094,-200.0,0.00032812,2]
[407972142,1772952647103,-272.62944185,0.00032812,2]
[407972143,1772952647113,-217.15233878,0.00032812,2]
[407972144,1772952647122,-997.16350561,0.00032814,2]
[407972145,1772952647133,-151.0,0.00032814,2]
[407972146,1772952647144,-151.0,0.00032869,2]
[407972147,1772952647155,-269.917619,0.00032877,2]
[407972148,1772952647166,-151.0,0.00032924,2]
[407972149,1772952647176,-151.0,0.00032979,2]
[407972150,1772952647186,-21399.81760889,0.00033,120]
[407972151,1772952647198,-151.0,0.00033034,2]
[407972152,1772952647210,-151.0,0.00033089,2]
[407972153,1772952647220,-151.0,0.00033144,2]
[407972154,1772952647231,-31667.81419682,0.00033149,2]
[407972155,1772952647240,-500.0,0.0003336,2]
[407972156,1772952647249,-799.54513345,0.0003336,2]
[407972157,1772952647260,-187.78006525,0.0003336,2]
[407972158,1772952647270,-200.0,0.0003336,2]
[407972159,1772952647282,-282.71673119,0.0003336,2]
[407972160,1772952647293,-280.31352223,0.0003336,2]
[407972161,1772952647303,-1247.20997122,0.00033366,2]
[407972162,1772952647314,-171.0,0.00033383,21]
[407972163,1772952647324,-342.46809728,0.00033425,2]
[407972164,1772952647334,-183.07748016,0.00033506,2]
[407972165,1772952647345,-7050.47477778,0.00033748,2]
[407972166,1772952647355,-310.93,0.00033855,30]
[407972167,1772952647365,-619.0,0.00033874,2]
[407972168,1772952647376,-1042.0,0.00033874,2]
[407972169,1772952647386,-5992.0,0.00033874,2]
[407972170,1772952647396,-500.0,0.00033908,27]
[407972171,1772952647405,-500.0,0.00033908,27]
[407972172,1772952647415,-500.0,0.00033908,2]
[407972173,1772952647424,-813.35678472,0.00033908,2]
[407972174,1772952647433,-194.72792766,0.00033908,2]
[407972175,1772952647443,-200.0,0.00033908,2]
[407972176,1772952647454,-293.17725025,0.00033908,2]
[407972177,1772952647463,-864.90825476,0.00033992,2]
[407972178,1772952647472,-172.77229034,0.00034088,2]
[407972179,1772952647482,-189.0,0.00034415,21]
[407972180,1772952647493,-201.93286099,0.00034456,2]
[407972181,1772952647504,-200.0,0.00034456,2]
[407972182,1772952647514,-304.02480851,0.00034456,2]
[407972183,1772952647525,-614.85396196,0.00034786,5]
[407972184,1772952647535,-1500.0,0.00034795,2]
[407972185,1772952647545,-2133.40579838,0.000348,2]
[407972186,1772952647554,-180.0,0.000349,120]
[407972187,1772952647564,-296.34,0.000349,30]
[407972188,1772952647577,-721.12765535,0.00035003,2]
[407972189,1772952647587,-578.20924308,0.00035003,2]
[407972190,1772952647597,-209.40437684,0.00035004,2]
[407972191,1772952647607,-200.0,0.00035004,2]
[407972192,1772952647617,-315.27372642,0.00035004,2]
[407972193,1772952647627,-366.70663054,0.00035165,2]
[407972194,1772952647637,-363.65115503,0.00035165,2]
[407972195,1772952647649,-217.15233878,0.00035552,2]
[407972196,1772952647659,-200.0,0.00035552,2]
[407972197,1772952647669,-326.9388543,0.00035552,2]
[407972198,1772952647677,-775.79506963,0.0003578,2]
[407972199,1772952647687,-150.0,0.00036,120]
[407972200,1772952647696,-225.18697532,0.000361,2]
[407972201,1772952647706,-200.0,0.000361,2]
[407972202,1772952647715,-339.03559191,0.000361,2]
[407972203,1772952647725,-31667.81419682,0.0003619,2]
[407972204,1772952647734,-5841.52919154,0.00036246,2]
[407972205,1772952647743,-251.54332566,0.00036606,2]
[407972206,1772952647753,-267.54369637,0.00036648,2]
[407972207,1772952647763,-200.0,0.00036648,2]
[407972208,1772952647772,-310.93,0.00036791,30]
[407972209,1772952647781,-619.0,0.00036874,2]
[407972210,1772952647790,-1042.0,0.00036874,2]
[407972211,1772952647800,-245.0,0.00037,120]
[407972212,1772952647809,-500.0,0.00037151,2]
[407972213,1772952647819,-200.0,0.00037196,2]
[407972214,1772952647828,-200.0,0.00037744,2]
[407972215,1772952647838,-313.32472497,0.0003788,120]
[407972216,1772952647847,-505.0,0.00038,21]
[407972217,1772952647857,-270.12,0.00038034,30]